{"text_format":"1","workbook":"xlsx","n_sheets":10,"sheets":["Instructions","Application","Affidavit of General Compliance","Verification","Bond","Attachment A","Attachment B","Attachment C","Attachment D","Key"],"not_rendered":{"charts":0,"images":0,"macros":1,"external_links":0,"defined_names":5,"comments":0,"pivot_tables":0},"unopened":[],"bounds":{"document_bytes":16777216,"sheet_cells":100000,"rows_first":2000,"rows_last":500,"rows_between":2000,"halvings":0,"cell_chars":16384,"cell_head_chars":4096},"cells_cut":0,"cells_raw":0,"read":"whole","date_system":"1900"}

{"sheet":"Instructions","index":0,"n_rows":46,"n_cols":16,"rows_kept":46,"cut":false,"hidden":false,"merged":[[0,9,0,16],[0,0,0,8],[1,0,1,8],[3,0,3,8],[41,0,41,2],[41,7,41,8],[4,0,6,8],[2,0,2,8],[1,9,2,15],[7,0,7,8],[25,0,25,8],[12,0,12,8],[15,0,15,8],[8,0,9,8],[3,10,3,11],[3,14,3,15],[33,0,35,8],[37,0,39,8],[10,0,11,8],[20,0,21,8],[28,0,28,8],[29,0,29,8],[13,0,14,8],[17,0,17,8],[31,0,31,8],[18,0,19,8],[26,0,26,8],[27,0,27,8],[16,0,16,8],[24,0,24,8],[23,0,23,8],[22,0,22,8]]}
["Instructions for the Subscriber Organization / Subscriber Coordinator Application for Authorization to Participate in the Community Solar Energy Generating System (“CSEGS”) Pilot Program",null,null,null,null,null,null,null,null,"Bonding Examples"]
[null,null,null,null,null,null,null,null,null,"Note: Bonding amount is for the sum of total capacity of all projects. Total capacity must be rounded up to the nearest whole MW to arrive at bonding amount."]
["1. Please file separate applications for Subscriber Organization and Subscription Coordinator."]
["2. Please fill in all fields highlighted in YELLOW on the tab labeled \"Application.\"",null,null,null,null,null,null,null,null,null,"Bonding for Type A and D",null,null,null,"Bonding for Type B and C"]
["3. Complete all the forms on the tabs labeled \"Affidavit of General Compliance,\" \"Verification,\" and \"Bond,\" by filling in the blank underlined spaces or editing and replacing the bold text before printing and signing. Be sure to fill out the appropriate bond form for your application.",null,null,null,null,null,null,null,null,null,"Total MWs","Bond Amount",null,null,"Total MWs","Bond Amount"]
[null,null,null,null,null,null,null,null,null,null,1,10000,null,null,1,0]
[null,null,null,null,null,null,null,null,null,null,2,{"$f":"L6+25000","v":35000},null,null,{"$f":"O6+1","v":2},{"$f":"P6+25000","v":25000}]
["4. Complete all applicable Attachments.",null,null,null,null,null,null,null,null,null,3,{"$f":"L7+25000","v":60000},null,null,{"$f":"O7+1","v":3},{"$f":"P7+25000","v":50000}]
["a) For Attachment B, make sure \"content\" is enabled, type the number of projects being applied for in the YELLOW cell and click \"Set Up Sheet.\"",null,null,null,null,null,null,null,null,null,4,{"$f":"L8+25000","v":85000},null,null,{"$f":"O8+1","v":4},{"$f":"P8+25000","v":75000}]
[null,null,null,null,null,null,null,null,null,null,5,110000,null,null,5,100000]
["5. Save the completed application form to your computer drive as \"[Company Name] CSEGS Application.\"",null,null,null,null,null,null,null,null,null,6,{"$f":"L10+25000","v":135000},null,null,{"$f":"O10+1","v":6},{"$f":"P10+25000","v":125000}]
[null,null,null,null,null,null,null,null,null,null,7,160000,null,null,7,150000]
["6. Email an electronic copy of the document in Excel format to eap.division@maryland.gov.",null,null,null,null,null,null,null,null,null,8,185000,null,null,8,175000]
["7. Print, sign, and file with the Commission a signed/verified original application, affidavit, verification, bond, and any attachments. DO NOT INCLUDE INSTRUCTIONS TAB WHEN FILING",null,null,null,null,null,null,null,null,null,9,{"$f":"L13+25000","v":210000},null,null,{"$f":"O13+1","v":9},{"$f":"P13+25000","v":200000}]
[null,null,null,null,null,null,null,null,null,null,10,235000,null,null,10,225000]
["8. To file an Application with the Maryland Public Service Commission:",null,null,null,null,null,null,null,null,null,11,{"$f":"L15+25000","v":260000},null,null,{"$f":"O15+1","v":11},{"$f":"P15+25000","v":250000}]
["a) E-file a PDF version of the file, e-file can be found at the following web address: ",null,null,null,null,null,null,null,null,null,12,{"$f":"L16+25000","v":285000},null,null,{"$f":"O16+1","v":12},{"$f":"P16+25000","v":275000}]
["https://webapp.psc.state.md.us/newIntranet/efile_new/efilelogin_new.cfm",null,null,null,null,null,null,null,null,null,13,310000,null,null,13,300000]
["b) When saving as a PDF please be sure to click options in the \"save as\" window and check entire workbook",null,null,null,null,null,null,null,null,null,14,335000,null,null,14,325000]
[null,null,null,null,null,null,null,null,null,null,15,360000,null,null,15,350000]
["c) For Paper filing requirements please check the Commission’s website for Requirements for Official Filings",null,null,null,null,null,null,null,null,null,16,385000,null,null,16,375000]
[null,null,null,null,null,null,null,null,null,null,17,410000,null,null,17,400000]
["d) Mail to the address below, the original bond",null,null,null,null,null,null,null,null,null,18,435000,null,null,18,425000]
["e) Mail to the address below, the Application fee of $400 for Type A or D or $50 for Type B or C.  (payable to “Public Service Commission of Maryland”)",null,null,null,null,null,null,null,null,null,19,{"$f":"L23+25000","v":460000},null,null,{"$f":"O23+1","v":19},{"$f":"P23+25000","v":450000}]
["Mail the original bond and application fee to:",null,null,null,null,null,null,null,null,null,20,{"$f":"L24+25000","v":485000},null,null,{"$f":"O24+1","v":20},{"$f":"P24+25000","v":475000}]
["Andrew S. Johnston",null,null,null,null,null,null,null,null,null,21,510000,null,null,21,500000]
["Executive Secretary",null,null,null,null,null,null,null,null,null,22,{"$f":"L26+25000","v":535000},null,null,{"$f":"O26+1","v":22},{"$f":"P26+25000","v":525000}]
["Maryland Public Service Commission",null,null,null,null,null,null,null,null,null,23,560000,null,null,23,550000]
["6 Saint Paul St.",null,null,null,null,null,null,null,null,null,24,585000,null,null,24,575000]
["Baltimore, MD 21202",null,null,null,null,null,null,null,null,null,25,610000,null,null,25,600000]
[null,null,null,null,null,null,null,null,null,null,26,635000,null,null,26,625000]
["For all amendments or supplemental filings, please include a cover letter and only the relevant pages.",null,null,null,null,null,null,null,null,null,27,660000,null,null,27,650000]
[null,null,null,null,null,null,null,null,null,null,28,685000,null,null,28,675000]
["Concurrently with the filing of the Application with the Executive Secretary, a paper copy of the Application shall be submitted to the Office of People’s Counsel, 6 St. Paul St., 21st Floor, Baltimore, MD 21202.",null,null,null,null,null,null,null,null,null,29,710000,null,null,29,700000]
[null,null,null,null,null,null,null,null,null,null,30,735000,null,null,30,725000]
[null,null,null,null,null,null,null,null,null,null,31,760000,null,null,31,750000]
[null,null,null,null,null,null,null,null,null,null,32,785000,null,null,32,775000]
["Questions pertaining to completion of this Application may be directed to the Public Service Commission Staff, Energy Analysis and Planning Division, at the above address or you may call the Division at (410) 767-8085.",null,null,null,null,null,null,null,null,null,33,810000,null,null,33,800000]
[null,null,null,null,null,null,null,null,null,null,34,835000,null,null,34,825000]
[null,null,null,null,null,null,null,null,null,null,35,860000,null,null,35,850000]
[null,null,null,null,null,null,null,null,null,null,36,885000,null,null,36,875000]
["Effective August 1, 2022",null,null,null,null,null,null,"Version 1.0",null,null,37,910000,null,null,37,900000]
[null,null,null,null,null,null,null,null,null,null,38,935000,null,null,38,925000]
[null,null,null,null,null,null,null,null,null,null,39,960000,null,null,39,950000]
[null,null,null,null,null,null,null,null,null,null,40,985000,null,null,40,975000]
[null,null,null,null,null,null,null,null,null,null,41,1010000,null,null,41,1000000]

{"sheet":"Application","index":1,"n_rows":126,"n_cols":3,"rows_kept":126,"cut":false,"hidden":false,"merged":[[125,1,125,4],[121,0,122,0],[121,1,122,4],[120,1,120,4],[123,1,123,4],[124,1,124,4],[98,0,98,4],[72,0,72,4],[71,0,71,4],[64,0,64,4],[65,0,65,4],[94,0,94,4],[95,0,97,4],[73,0,73,4],[80,0,80,4],[81,0,81,4],[85,0,85,4],[89,0,89,4],[68,0,70,4],[74,1,74,3],[75,1,75,3],[76,1,76,3],[99,0,104,4],[109,0,110,4],[111,0,113,4],[117,0,118,4],[116,0,116,4],[114,0,114,4],[115,0,115,4],[105,0,108,4],[45,0,45,4],[51,0,51,4],[0,0,0,4],[29,0,29,4],[9,0,12,4],[13,0,16,4],[17,0,20,4],[21,0,23,4],[24,0,25,4],[2,0,2,4],[7,0,7,4],[8,0,8,4],[26,0,27,4],[30,0,30,4],[31,0,32,4],[41,0,43,4],[54,0,54,1],[55,0,55,1],[67,0,67,4],[46,0,46,4],[57,0,57,4],[58,0,59,4],[63,0,63,4],[52,0,52,1],[53,0,53,1],[28,0,28,4],[3,1,3,3],[4,1,4,3],[5,1,5,3],[6,1,6,3],[84,1,84,3],[86,1,86,3],[87,1,87,3],[88,1,88,3],[77,1,77,3],[78,1,78,3],[79,1,79,3],[82,1,82,3],[83,1,83,3]]}
["Subscriber Organization / Subscriber Coordinator Application for Authorization to Participate in the Community Solar Energy Generating System (“CSEGS”) Pilot Program"]
[]
["1. Identity of the Applicant"]
["Legal Name:"]
["Current Address:"]
["City, State, Zip"]
["Street Address (if different than above):"]
["2. Subscriber Organization Type"]
["Select only one."]
["Type A. Proposed Owner and/or Operator of Community Solar Energy Generating System(s) Authorization requires a Subscriber Organization Bond. See \"Instructions\" tab. The bond amount is $10,000 plus $25,000 per each MW of program capacity in excess of 1MW for which the Applicant seeks to apply.  Application Fee is $400."]
[]
[]
[]
["Type B. Proposed Collective Group of Subscribers of a (single) Community Solar Energy Generating System. Complete Attachment C. A bond is not required for program participation of 1MW or less. The bond amount is $25,000 per each MW of program capacity in excess of 1MW for which the Applicant seeks to apply. See \"Instructions\" tab. Application Fee is $50."]
[]
[]
[]
["Type C. Proposed Non-profit Owner and/or Operator of Community Solar Energy Generating System(s) Authorization requires a Subscriber Organization Bond if program capacity requested exceeds 1MW. See \"Instructions\" tab. The bond amount is $25,000 per each MW of  program capacity in excess of 1MW for which the Applicant seeks to apply. Application Fee is $50."]
[]
[]
[]
["Type D. Subscription Coordinator requires a Subscriber Organization Bond. Complete Attachment D. See \"Instructions\" tab. The bond amount is $10,000 plus $25,000 per each MW of program capacity in excess of 1MW for which the Applicant seeks to apply.  Application Fee is $400."]
[]
[]
["Note: Bonding amount is for the sum of total capacity of all projects. Total capacity must be rounded up to the nearest whole MW to arrive at bonding amount."]
[]
["3. Complete Attachment B for each facility that the Applicant plans to apply for capacity in the Pilot Program."]
[]
["Please attach the SDAT Propery tax information for each project."]
["Note: If applying for the SBO category, provide proof of qualifications for each project."]
["4. Applicant Operations:"]
["Identify the functions that the Applicant will undertake on its own behalf, and those that it expects to either partner with others to provide or contract to others. Check all that apply."]
[]
[null,"Subscriber Coordinator","Owner"]
["Develop"]
["Finance"]
["Build"]
["Own Solicit Subscribers"]
["Operate CSEGS*"]
["Manage Subscriptions*"]
[]
["* “Operate CSEGS” means to operate and maintain the CSEGS facility; “Manage Subscriptions” means maintaining the ongoing subscriber relationships, customer service to subscribers, and data interface with utilities on subscriptions."]
[]
[]
[]
["4. Applicant Operations (Cont.)"]
["Subscriber Type (Check all thay apply):"]
["      Commercial and Industrial"]
["      Residential"]
["      Low and Moderate Income"]
[]
["Service Territory Applicant intends to operate (Check all that apply):"]
["Baltimore Gas & Electric (\"BGE\")"]
["Delmarva Power & Light Company (\"DPL\")"]
["Potomac Edison Company (\"PE\")"]
["Potomac Electric Power Company (\"Pepco\")"]
[]
["Number of CSEGS Applicant intends to operate (Check one):"]
["Note: Check the box for “Single CSEGS” if Applicant is a special purpose entity organized to legally own a single CSEGS."]
[]
["      Single CSEGS"]
["      Multiple CSEGS"]
[]
["Identify whether Applicant will accept either or both of the following:"]
["      Security Deposits (as defined in COMAR Regulations 20.62.01.02)"]
["      Prepaid Subscription Fees (as defined in COMAR Regulations 20.62.05.11)"]
[]
["Affilates:"]
["Note: \"Affilate\" means a person, subsidiary group, or company attached or connected to the Applicant in any way. This includes other Subscriber Organizations/Subscription Coordinators with whom the Applicant has any relationship."]
[]
[]
["      Applicant has no affiliated approved Subscriber Organizations/Subscription Coordinators"]
["      See Attachment A"]
["5. Regulatory Contact:"]
["Name and Title:"]
["Address:"]
["City, State, Zip"]
["Telephone:"]
["Fax:"]
["Email:"]
["6. Primary Corporate Officers/General Partners/Managing Partners (if applicable)"]
["President/General Partner/Managing Partner:"]
["Name:"]
["Business Address:"]
["City, State, Zip"]
["CEO"]
["Name:"]
["Business Address:"]
["City, State, Zip"]
["7. Applican't Business Form (if applicable):"]
["      Proprietorship","      Limited Partnership"]
["      Corporation","      Limited Liability Company"]
["      Partnership","      Limited Liability Partnership"]
["Other:"]
["8. Actions Against Applicant:"]
["Actions such as Suspensions/Revocations, Limitations, Reprimands, Fines, Consent Decrees, or other similar actions have been taken or are pending against the Applicant. If checked, provide an attachment describing the action; and include docket numbers, offense dates, and case numbers, if applicable."]
[]
[]
["No such action has been taken."]
["9. Technical and Managerial Competency: The Applicant must submit, in an attachment, a statement of technical and managerial competency.  The attachment should also include a description of the Applicant and current U.S. operations, intended operations in Maryland, past work experience relevant to the community solar pilot program, general plans for partnering or contracting pilot program functions, and other items or information that demonstrate technical and managerial competency. Finally, list all states where applicant has built or operates a community solar installation at the time of this application."]
[]
[]
[]
[]
[]
["10. Training and Marketing Materials: The Applicant must provide copies of the training materials offered to the Applicant’s sales personnel/representatives; as well as the marketing materials that the Applicant will use to advertise to Maryland customers.  If training material or marketing material is not available at the time of application, provide such material before commencing business in the state."]
[]
[]
[]
["11. Business Relationship: Description, in an attachment, of business relationship between Subscriber Organization and Subscriber Coordinators."]
[]
["12. Affilated Applications: List the name of each company or entity which is affiliated with the applicant, if that company or entity has separately applied for, or intends to apply for, admission to the Maryland CSEGS Program as a Subscriber Organization.  Describe the nature of each affiliation."]
[]
[]
["      Applicant has no affiliated applications"]
["      Yes, describe below"]
[]
["12. Application Fee: The Applicant must enclose the required application fee of $400 (Types\nA and D) or $50 (Types B and C)"]
[]
[]
["Applicant Name:"]
["Signature:"]
[]
["Print Name:"]
["Title:"]
["Date:"]

{"sheet":"Affidavit of General Compliance","index":2,"n_rows":0,"n_cols":0,"rows_kept":0,"cut":false,"hidden":false,"merged":[]}

{"sheet":"Verification","index":3,"n_rows":0,"n_cols":0,"rows_kept":0,"cut":false,"hidden":false,"merged":[]}

{"sheet":"Bond","index":4,"n_rows":0,"n_cols":0,"rows_kept":0,"cut":false,"hidden":false,"merged":[]}

{"sheet":"Attachment A","index":5,"n_rows":43,"n_cols":2,"rows_kept":43,"cut":false,"hidden":false,"merged":[[2,0,2,1],[0,0,0,1]]}
["Subscriber Organization / Subscriber Coordinator Application for Authorization to Participate in the Community Solar Energy Generating System (“CSEGS”) Pilot Program"]
[]
["Attachment A: Affilate Information"]
["Subscriber Organization/Subscription Coordinator Name","Subscriber Organization/Subscription Coordinator Number"]
[]
[]
[]
[]
[]
[]
[]
[]
[]
[]
[]
[]
[]
[]
[]
[]
[]
[]
[]
[]
[]
[]
[]
[]
[]
[]
[]
[]
[]
[]
[]
[]
[]
[]
[]
[]
[]
[]
["(Applicant should attach additional pages for affilate list as needed)"]

{"sheet":"Attachment B","index":6,"n_rows":36,"n_cols":2,"rows_kept":36,"cut":false,"hidden":false,"merged":[[0,0,0,2]]}
["Subscriber Organization / Subscriber Coordinator Application for Authorization to Participate in the Community Solar Energy Generating System (“CSEGS”) Pilot Program"]
["Attachment B: Planned Project Information"]
["Number of Projects",4]
["Project Name/ID"]
["Project Address"]
["City"]
["Zip"]
["Map and Parcel Number"]
["Total Project Capacity in kW A/C"]
["Pilot Program Category","Select One"]
["Utility Service Territory"]
["Local Governement Jurisdiction"]
["Mounting Type"]
["Expected Total Number of Subscribers"]
["Expected Number of Residential Subscribers"]
["Expected Number of Commercial Subscribers"]
["Expected Number of Industrial > 600 kW demand Subscribers"]
["% of LMI Subscribers"]
["% Low Income Subscribers"]
["Appliant intends to:"]
["Deposits will be required of customers"]
["Own the facility"]
["Operate the facility"]
["Collectively control the facility as a group of subscribers"]
["Convert an existing facility that it will own or operate"]
["Convert an existing facility that it will control as a group of subscribers"]
["Develop a new facility that it will operate"]
["Develop a new facility that it will operate as a group of subscribers"]
["Develop a new facility, for eventual operation by a different SO"]
["Own or operate a new facility to be developed by others"]
["Other, describe:"]
[]
["Any additional notes, including who Coordinator is, if applicable:"]
[]
["Total MW",{"$f":"SUM(9:9)/1000","v":0}]
["Total MW for bonding",{"$f":"ROUNDUP(B35,0)","v":0}]

{"sheet":"Attachment C","index":7,"n_rows":35,"n_cols":5,"rows_kept":35,"cut":false,"hidden":false,"merged":[[0,0,0,4],[2,0,2,4],[3,0,3,4],[1,0,1,4]]}
["Subscriber Organization / Subscriber Coordinator Application for Authorization to Participate in the Community Solar Energy Generating System (“CSEGS”) Pilot Program"]
[]
["Attachment C: Members of Subscriber Group"]
["Members of Subscriber Group must match Subscriber List provided to Electric Company"]
["Member Name","Service Address ","City","Zip","Utility Account Number"]
[]
[]
[]
[]
[]
[]
[]
[]
[]
[]
[]
[]
[]
[]
[]
[]
[]
[]
[]
[]
[]
[]
[]
[]
[]
[]
[]
[]
[]
["(Applicant should attach additional pages as needed)"]

{"sheet":"Attachment D","index":8,"n_rows":35,"n_cols":5,"rows_kept":35,"cut":false,"hidden":false,"merged":[[0,0,0,4],[2,0,2,4],[3,0,3,4],[1,0,1,4]]}
["Subscriber Organization / Subscriber Coordinator Application for Authorization to Participate in the Community Solar Energy Generating System (“CSEGS”) Pilot Program"]
[]
["Attachment D: Subscriber Coordinator List"]
["List of projects shared between Subscriber Coordinator and Subscriber Organization"]
["Shared Project Address","City","Zip","Subscriber Organization","Subscriber Organization"]
[]
[]
[]
[]
[]
[]
[]
[]
[]
[]
[]
[]
[]
[]
[]
[]
[]
[]
[]
[]
[]
[]
[]
[]
[]
[]
[]
[]
[]
["(Applicant should attach additional pages as needed)"]

{"sheet":"Key","index":9,"n_rows":27,"n_cols":6,"rows_kept":27,"cut":false,"hidden":true,"merged":[]}
[]
[null,"Abbreviation","Meaning",null,"County","Abbreviation"]
[null,"Select One"]
[null,"O","Open",null,"Allegany County","AL"]
[null,"LMI","Low and Moderate Income",null,"Anne Arundel County","AA"]
[null,"SBO","Small/Brownfield/Other",null,"Baltimore County","BL"]
[null,"K","50 kW or Less",null,"Baltimore City","BC"]
[null,null,null,null,"Calvert County","CV"]
[null,null,null,null,"Caroline County","CL"]
[null,null,null,null,"Carroll County","CR"]
[null,null,null,null,"Cecil County","CC"]
[null,null,null,null,"Charles County","CH"]
[null,null,null,null,"Dorchester County","DR"]
[null,null,"Ground-mounted",null,"Frederick County","FR"]
[null,null,"Roof-top",null,"Garrett County","GR"]
[null,null,null,null,"Harford County","HR"]
[null,"BGE","Baltimore Gas and Electric",null,"Howard County","HW"]
[null,"DPL","Delmarva Power and Light Company",null,"Kent County","KN"]
[null,"PE","Potomac Edison Company",null,"Montgomery County","MG"]
[null,"Pepco","Potomac Electric Power Company",null,"Prince George’s County","PG"]
[null,null,null,null,"Queen Anne’s County","QA"]
[null,null,"Owner",null,"St. Mary’s County","SM"]
[null,null,"Coordinator",null,"Somerset County","SS"]
[null,null,null,null,"Talbot County","TB"]
[null,null,"X",null,"Washington County","WH"]
[null,null,null,null,"Wicomico County","WC"]
[null,null,null,null,"Worcester County","WR"]